bitfinex/quotes_BTCUSD_20241223
["timestamp","ask_amount","ask_price","bid_price","bid_amount"]
[1734968188135,0.15,93489.0,93488.0,0.00041392]
[1734968188567,0.00533717,93501.0,93460.0,0.24456923]
[1734968188756,0.00138081,93509.0,93464.0,0.213986]
[1734968188957,0.15,93507.0,93490.0,0.213924]
[1734968189154,0.001,93499.0,93488.0,0.001]
[1734968189368,0.15,93497.0,93468.0,0.213976]
[1734968189575,0.15,93495.0,93474.0,0.213962]
[1734968189802,0.10532357,93496.0,93459.0,0.09896934]
[1734968189803,0.15,93493.0,93475.0,0.21396]
[1734968190010,0.213897,93503.0,93459.0,0.09896934]
[1734968190011,0.15,93491.0,93459.0,0.09896934]
[1734968190221,0.15,93489.0,93475.0,0.00016023]
[1734968190430,0.15,93487.0,93475.0,0.00016023]
[1734968190670,0.15,93485.0,93475.0,0.00016023]
[1734968190899,0.10398632,93484.0,93475.0,0.00016023]
[1734968191503,0.00133729,93483.0,93475.0,0.00016023]
[1734968191703,0.12951868,93482.0,93475.0,0.00016023]
[1734968192019,0.00133729,93481.0,93475.0,0.00016023]
[1734968192159,0.15,93479.0,93475.0,0.00016023]
[1734968192354,0.363958,93476.0,93475.0,0.00016023]
[1734968192596,0.46794432,93476.0,93475.0,0.00016023]
[1734968192799,0.48052483,93476.0,93475.0,0.00016023]
[1734968193410,0.26656683,93476.0,93475.0,0.00016023]
[1734968193629,0.15,93474.0,93431.0,0.21406]
[1734968193814,0.15,93472.0,93450.0,0.21406929]
[1734968193985,0.15,93470.0,93451.0,0.214015]
[1734968194189,0.15,93468.0,93451.0,0.214015]
[1734968194393,0.213983,93465.0,93450.0,5.329e-05]
[1734968194593,0.15,93463.0,93450.0,5.329e-05]
[1734968194813,0.15,93461.0,93450.0,5.329e-05]
[1734968195013,0.10532393,93460.0,93450.0,5.329e-05]
[1734968195568,0.10532393,93460.0,93450.0,0.00105329]
[1734968195854,0.02553239,93459.0,93450.0,0.00105329]
[1734968196072,0.00133761,93458.0,93450.0,5.329e-05]
[1734968197744,0.00233761,93458.0,93450.0,5.329e-05]
[1734968197954,0.001,93458.0,93450.0,5.329e-05]
[1734968198369,0.002,93458.0,93450.0,5.329e-05]
[1734968198541,0.00133761,93457.0,93435.0,0.06964752]
[1734968198755,0.10522049,93457.0,93443.0,0.00016023]
[1734968199581,0.15,93456.0,93443.0,0.00016023]
[1734968199809,0.10522056,93455.0,93443.0,0.00016023]
[1734968200999,0.15,93454.0,93443.0,0.00016023]
[1734968201198,0.15,93444.0,93443.0,0.00016023]
[1734968201449,0.25522083,93444.0,93443.0,0.00016023]
[1734968201650,0.25398632,93444.0,93443.0,0.00016023]
[1734968202716,0.25598632,93444.0,93443.0,0.00116023]
[1734968203120,0.25598632,93444.0,93443.0,0.00016023]
[1734968203320,0.25998632,93444.0,93443.0,0.00016023]
[1734968203549,0.25998632,93444.0,93403.0,0.337125]
[1734968203550,0.15,93439.0,93403.0,0.337125]
[1734968203724,0.15864541,93422.0,93412.0,0.00053402]
[1734968203926,0.06626836,93421.0,93412.0,0.00053402]
[1734968204131,0.00073175,93420.0,93412.0,0.00053402]
[1734968204386,0.214066,93429.0,93412.0,0.00053402]
[1734968204387,0.15864541,93422.0,93412.0,0.00053402]
[1734968204574,0.00073175,93421.0,93412.0,0.00053402]
[1734968204785,0.10398632,93422.0,93412.0,0.00053402]
[1734968204918,0.10398632,93428.0,93412.0,0.00053402]
[1734968205374,0.02992007,93444.0,93413.0,0.10505682]
[1734968205375,0.009,93444.0,93413.0,0.10505682]
[1734968205581,0.001,93422.0,93421.0,0.214084]
[1734968205781,0.001,93422.0,93421.0,0.31807032]
[1734968206102,0.09456739,93452.0,93432.0,0.214058]
[1734968206339,0.10398632,93451.0,93432.0,0.214058]
[1734968206740,0.10398632,93451.0,93428.0,0.214066]
[1734968206950,0.10398632,93451.0,93429.0,0.428132]
[1734968207165,0.15,93450.0,93421.0,0.10998632]
[1734968207371,0.15,93450.0,93432.0,0.214058]
[1734968207520,0.15,93450.0,93436.0,0.214049]
[1734968207726,0.15,93450.0,93432.0,0.214058]
[1734968207932,0.15,93450.0,93433.0,0.214056]
[1734968208139,0.17539863,93450.0,93437.0,0.214047]
[1734968208335,0.17539863,93450.0,93433.0,0.214056]
[1734968208542,0.25398632,93451.0,93434.0,0.214054]
[1734968208750,0.25398632,93451.0,93432.0,0.001]
[1734968208949,0.25398632,93451.0,93432.0,0.215058]
[1734968209131,0.003,93450.0,93433.0,0.214057]
[1734968209335,0.003,93450.0,93447.0,0.214024]
[1734968209534,0.009,93450.0,93449.0,0.21402]
[1734968209972,0.003,93450.0,93449.0,0.21402]
[1734968210165,0.003,93450.0,93449.0,0.31800632]
[1734968210371,0.003,93450.0,93449.0,0.44340632]
[1734968210579,0.007,93451.0,93449.0,0.44340632]
[1734968210788,0.01,93451.0,93449.0,0.34142]
[1734968211037,0.01,93451.0,93449.0,0.0502]
[1734968211267,0.213946,93482.0,93450.0,0.10398632]
[1734968211466,0.00016032,93469.0,93451.0,0.0010699]
[1734968211668,0.00016032,93469.0,93453.0,0.214009]
[1734968211867,0.00016032,93469.0,93451.0,0.214014]
[1734968212067,0.15,93467.0,93452.0,0.00579673]
[1734968212267,0.02157235,93469.0,93452.0,0.00579673]
[1734968212268,0.15,93465.0,93452.0,0.00579673]
[1734968212636,0.15,93463.0,93452.0,0.00579673]
[1734968213070,0.15,93461.0,93452.0,0.00579673]
[1734968213273,0.25388319,93461.0,93452.0,0.00579673]
[1734968213485,0.25388319,93461.0,93443.0,0.14682973]
[1734968213692,0.25388319,93461.0,93423.0,0.01059065]
[1734968213900,0.01670084,93460.0,93443.0,0.214033]
[1734968215040,0.25688319,93461.0,93443.0,0.214033]
[1734968215393,0.002,93461.0,93433.0,0.06879554]
[1734968215600,0.002,93461.0,93449.0,0.214018]
[1734968215784,0.001,93460.0,93449.0,0.214018]
[1734968216238,0.001,93460.0,93446.0,0.214026]
[1734968216482,0.002,93460.0,93446.0,0.214026]
[1734968216621,0.001,93460.0,93446.0,0.214026]
[1734968217201,0.015271,93460.0,93439.0,0.428086]
[1734968217407,0.015271,93460.0,93438.0,0.214044]
[1734968217686,0.214002,93457.0,93434.0,0.214053]
[1734968217961,0.15,93454.0,93429.0,0.02186634]
[1734968218119,0.12699919,93453.0,93429.0,0.02186634]
[1734968218314,0.15,93452.0,93432.0,0.214059]
[1734968218522,0.10398632,93451.0,93429.0,0.23593134]
[1734968218736,0.15,93452.0,93429.0,0.23593134]
[1734968218737,0.15,93452.0,93441.0,0.214036]
[1734968218940,0.15,93452.0,93439.0,0.214042]
[1734968219138,0.15,93452.0,93440.0,0.214041]
[1734968219522,0.09456739,93454.0,93440.0,0.214041]
[1734968219891,0.003,93457.0,93440.0,0.214041]
[1734968220094,0.002,93452.0,93432.0,0.214059]
[1734968220335,0.002,93452.0,93431.0,8.55e-05]
[1734968220508,0.003,93451.0,93444.0,0.214031]
[1734968220718,0.003,93451.0,93431.0,8.55e-05]
[1734968220867,0.002,93452.0,93431.0,8.55e-05]
[1734968221089,0.12874306,93451.0,93432.0,0.214059]
[1734968221286,0.12874306,93451.0,93431.0,8.55e-05]
[1734968221869,0.02475674,93451.0,93432.0,0.214059]
[1734968221978,0.09456739,93459.0,93433.0,0.00107016]
[1734968222182,0.002,93452.0,93444.0,0.214029]
[1734968222390,0.00193133,93452.0,93444.0,0.214029]
[1734968222601,0.00393133,93452.0,93445.0,0.214029]
[1734968222808,0.00193133,93452.0,93440.0,0.214038]
[1734968223208,0.00193133,93452.0,93435.0,0.214051]
[1734968223410,0.0268812,93452.0,93439.0,0.214042]
[1734968223863,0.0268812,93452.0,93439.0,0.214041]
[1734968224006,0.15,93457.0,93447.0,0.214024]
[1734968224204,0.15,93457.0,93451.0,0.214015]
[1734968224411,0.000171,93460.0,93447.0,0.214023]
[1734968224833,0.000171,93460.0,93448.0,0.214022]
[1734968225045,0.000171,93460.0,93458.0,0.213998]
[1734968225479,0.000171,93460.0,93448.0,0.0495]
[1734968225685,0.000171,93460.0,93432.0,0.0495]
[1734968225889,0.000171,93460.0,93433.0,0.10398632]
[1734968226128,0.002171,93460.0,93438.0,0.214044]
[1734968226294,0.002171,93460.0,93431.0,0.2141455]
[1734968226295,0.10398632,93459.0,93436.0,0.214048]
[1734968226499,0.15,93458.0,93436.0,0.214048]
[1734968226711,0.15,93458.0,93439.0,0.214042]
[1734968226913,0.10398632,93457.0,93436.0,0.214048]
[1734968227116,0.15,93456.0,93438.0,0.214045]
[1734968227326,0.15,93456.0,93439.0,0.00107017]
[1734968227533,0.15,93456.0,93440.0,0.214038]
[1734968227737,0.15,93456.0,93432.0,0.214059]
[1734968227948,0.15,93456.0,93436.0,0.214048]
[1734968228158,0.09456739,93458.0,93440.0,0.21404]
[1734968228366,0.15,93456.0,93440.0,0.14004]
[1734968228567,0.15,93456.0,93434.0,0.214054]
[1734968228776,0.151,93456.0,93436.0,0.21405]
[1734968228977,0.151,93456.0,93440.0,0.21404]
[1734968229222,0.15,93456.0,93440.0,0.21404]
[1734968229434,0.10398632,93455.0,93438.0,8.55e-05]
[1734968229639,0.15,93449.0,93438.0,8.55e-05]
[1734968229840,0.15,93443.0,93438.0,8.55e-05]
[1734968230064,0.15,93441.0,93438.0,8.55e-05]
[1734968230272,0.10398632,93440.0,93438.0,8.55e-05]
[1734968230482,0.15,93441.0,93438.0,8.55e-05]
[1734968230647,0.001,93456.0,93438.0,8.55e-05]
[1734968230844,0.001,93456.0,93443.0,0.214033]
[1734968231054,0.15,93464.0,93447.0,0.214024]
[1734968231246,0.09456739,93448.0,93447.0,0.214024]
[1734968232077,0.09456739,93448.0,93447.0,0.31801032]
[1734968232302,0.23657695,93458.0,93451.0,0.214015]
[1734968232303,0.09456739,93454.0,93451.0,0.214015]
[1734968232427,0.09456739,93454.0,93447.0,0.0454]
[1734968232638,0.09456739,93454.0,93441.0,0.02099815]
[1734968232838,0.09456739,93454.0,93446.0,0.428052]
[1734968233038,0.09456739,93454.0,93447.0,0.00107007]
[1734968233422,0.00333129,93460.0,93447.0,0.00107007]
[1734968233423,0.00333129,93460.0,93447.0,0.11305633]
[1734968233671,0.00333129,93460.0,93457.0,0.214001]
[1734968233860,0.00333129,93460.0,93459.0,0.213997]
[1734968234067,0.00033129,93460.0,93459.0,0.31798332]
[1734968234477,0.00033129,93460.0,93459.0,0.55642281]
[1734968235291,0.00033129,93460.0,93459.0,0.55942281]
[1734968235446,0.00033129,93460.0,93459.0,0.58072428]
[1734968236061,0.00033129,93460.0,93459.0,0.67271681]
[1734968236259,0.00033129,93460.0,93459.0,0.58072428]
[1734968237037,0.001,93460.0,93459.0,0.61072428]
[1734968237249,0.001,93460.0,93459.0,0.86072428]
[1734968237686,0.000171,93483.0,93482.0,0.213944]
[1734968238476,0.10929977,93496.0,93492.0,0.21392]
[1734968238710,0.10946018,93496.0,93492.0,0.21392]
[1734968238919,0.00016041,93496.0,93466.0,0.023]
[1734968239143,0.00016041,93496.0,93493.0,0.213919]
[1734968239345,0.00016041,93496.0,93493.0,0.427838]
[1734968239520,0.00016041,93496.0,93495.0,0.213915]
[1734968240074,0.00016041,93496.0,93495.0,0.36068472]
[1734968240310,4.385e-05,93509.0,93496.0,0.23843949]
[1734968240718,0.21392685,93509.0,93496.0,0.23843949]
[1734968240928,0.21392685,93509.0,93482.0,0.001]
[1734968240929,0.10398632,93508.0,93482.0,0.001]
[1734968241147,0.21093745,93508.0,93482.0,0.001]
[1734968241407,0.15,93497.0,93482.0,0.001]
[1734968241628,0.15,93495.0,93480.0,0.00016041]
[1734968241839,0.00204385,93509.0,93491.0,0.213922]
[1734968242071,0.15,93507.0,93486.0,0.213934]
[1734968242283,0.10398632,93506.0,93495.0,0.005]
[1734968242494,0.10398632,93506.0,93480.0,0.00016041]
[1734968242495,0.15,93503.0,93480.0,0.00016041]
[1734968242700,0.002,93497.0,93480.0,0.00016041]
[1734968242906,0.002,93497.0,93480.0,0.00123005]
[1734968242907,0.003,93495.0,93480.0,0.00123005]
[1734968243114,0.003,93495.0,93480.0,0.00016041]
[1734968243317,0.003,93495.0,93491.0,0.506046]
[1734968243521,0.002,93497.0,93492.0,0.10398632]
[1734968243727,0.002,93497.0,93492.0,0.10505575]
[1734968243874,0.002,93497.0,93493.0,0.42890732]
[1734968244088,0.23657695,93518.0,93491.0,0.292123]
[1734968244287,0.23657695,93518.0,93506.0,0.213889]
[1734968244464,0.23657695,93518.0,93508.0,0.213885]
[1734968244665,0.23657695,93518.0,93508.0,0.36407132]
[1734968244947,0.23657695,93518.0,93517.0,0.463864]
[1734968244948,0.1937044,93518.0,93517.0,0.463864]
[1734968245182,0.00022887,93545.0,93517.0,0.463864]
[1734968245183,0.1937044,93541.0,93535.0,0.15]
[1734968245394,0.27855546,93554.0,93540.0,0.363812]
[1734968245596,0.09874798,93554.0,93553.0,0.213782]
[1734968245772,0.09874798,93554.0,93553.0,0.55620781]
[1734968246436,0.213667,93604.0,93555.0,0.213775]
[1734968246643,0.00070571,93559.0,93557.0,0.213773]
[1734968246859,0.00070571,93559.0,93558.0,0.28754113]
[1734968247065,0.00070571,93559.0,93558.0,0.28647264]
[1734968247879,0.02204876,93618.0,93572.0,0.213739]
[1734968248081,0.0003318,93573.0,93572.0,0.59072532]
[1734968248287,7.987e-05,93618.0,93584.0,0.1]
[1734968248497,0.00024015,93618.0,93614.0,0.213641]
[1734968248707,0.00024015,93618.0,93591.0,0.26143949]
[1734968248708,0.00024015,93618.0,93616.0,0.213638]
[1734968248905,0.00024015,93618.0,93617.0,0.00106806]
[1734968249574,0.00024015,93618.0,93594.0,0.213688]
[1734968249774,0.00024015,93618.0,93597.0,0.213679]
[1734968249979,0.00024015,93618.0,93593.0,0.45212949]
[1734968250251,0.00024015,93618.0,93599.0,0.213675]
[1734968250252,0.10422647,93618.0,93599.0,0.213675]
[1734968250476,0.00024015,93618.0,93617.0,0.003]
[1734968250959,0.00024015,93618.0,93617.0,0.002]
[1734968251198,0.00524015,93618.0,93617.0,0.002]
[1734968251463,0.00524015,93618.0,93603.0,0.213666]
[1734968251670,0.00524015,93618.0,93605.0,0.213663]
[1734968251876,0.00524015,93618.0,93610.0,0.21365]
[1734968252279,0.00524015,93618.0,93612.0,0.213647]
[1734968252490,0.00524015,93618.0,93606.0,0.21366]
[1734968253008,0.00024015,93618.0,93606.0,0.21366]
[1734968253222,0.00024015,93618.0,93607.0,0.00106813]
[1734968253418,0.00024015,93618.0,93603.0,0.00106813]
[1734968253618,0.00224015,93618.0,93603.0,0.00106813]
[1734968254220,0.00224015,93618.0,93606.0,0.003]
[1734968254221,0.00032565,93618.0,93606.0,0.003]
[1734968254428,0.00032565,93618.0,93596.0,0.213683]
[1734968254602,0.00032565,93618.0,93597.0,0.00106821]
[1734968254831,0.00032565,93618.0,93591.0,0.213695]
[1734968255009,0.15,93616.0,93592.0,0.04015376]
[1734968255182,0.15,93616.0,93590.0,0.213698]
[1734968255183,0.25398632,93616.0,93590.0,0.213698]
[1734968255401,0.15,93610.0,93589.0,0.23843949]
[1734968255654,0.00232565,93618.0,93602.0,0.21367]
[1734968255862,0.00232565,93618.0,93603.0,0.021367]
[1734968256085,0.00232565,93618.0,93603.0,0.00106821]
[1734968256289,0.00232565,93618.0,93604.0,0.213664]
[1734968256502,0.007,93616.0,93604.0,0.213664]
[1734968256715,0.007,93616.0,93590.0,0.001]
[1734968256716,0.10398632,93615.0,93590.0,0.001]
[1734968256919,0.15,93614.0,93590.0,0.001]
[1734968257124,0.15,93612.0,93590.0,0.001]
[1734968257331,0.15,93606.0,93579.0,0.213723]
[1734968257535,0.15,93604.0,93585.0,0.213708]
[1734968257747,0.023,93625.0,93586.0,0.04381104]
[1734968257952,0.15,93616.0,93586.0,0.00106834]
[1734968258164,0.213605,93631.0,93576.0,0.0454]
[1734968258165,0.001,93615.0,93590.0,0.1587737]
[1734968258378,0.001,93615.0,93612.0,0.213647]
[1734968258584,0.00432565,93618.0,93609.0,0.213654]
[1734968258995,0.00832565,93618.0,93609.0,0.213654]
[1734968259419,0.00832565,93618.0,93595.0,0.213686]
[1734968259626,0.00432565,93618.0,93597.0,0.213682]
[1734968260038,0.003,93604.0,93597.0,0.213682]
[1734968260252,0.00432565,93618.0,93578.0,0.02126506]
[1734968260253,0.00032565,93618.0,93578.0,0.02126506]
[1734968260471,0.00032565,93618.0,93600.0,4e-05]
[1734968260676,0.00232565,93618.0,93609.0,0.001]
[1734968260882,0.213638,93616.0,93609.0,0.001]
[1734968261093,0.10398632,93616.0,93600.0,4e-05]
[1734968261508,0.15,93613.0,93600.0,4e-05]
[1734968261713,0.14989385,93607.0,93600.0,4e-05]
[1734968261918,0.22698632,93601.0,93600.0,4e-05]
[1734968262127,0.213686,93595.0,93543.0,0.213803]
[1734968262337,0.10398632,93594.0,93551.0,0.10398632]
[1734968262547,0.004,93616.0,93555.0,0.213777]
[1734968262759,0.10398632,93606.0,93562.0,0.23843949]
[1734968262971,0.213641,93615.0,93562.0,0.23843949]
[1734968262972,0.213652,93611.0,93583.0,0.213713]
[1734968263181,0.213667,93604.0,93564.0,0.213757]
[1734968263389,0.10398632,93603.0,93577.0,0.213726]
[1734968263604,0.008,93594.0,93565.0,0.10398632]
[1734968263814,0.008,93594.0,93576.0,0.213729]
[1734968264017,0.15,93602.0,93576.0,0.213729]
[1734968264291,0.15,93600.0,93583.0,0.001]
[1734968264489,0.15,93599.0,93576.0,0.213729]
[1734968264697,0.1418,93597.0,93572.0,0.213738]
[1734968264913,0.24578632,93597.0,93577.0,0.213725]
[1734968265367,0.24578632,93597.0,93552.0,0.1]
[1734968265368,0.10398632,93596.0,93570.0,0.213741]
[1734968265581,0.10398632,93596.0,93576.0,0.0001708]
[1734968265788,0.003,93602.0,93577.0,0.213727]
[1734968265972,0.004,93594.0,93581.0,0.213716]
[1734968266396,0.10398632,93601.0,93581.0,0.213716]
[1734968266672,0.003,93596.0,93576.0,0.0001708]
[1734968266933,0.15,93594.0,93576.0,0.0001708]
[1734968267153,0.001,93597.0,93576.0,0.0001708]
[1734968267154,0.0787,93587.0,93576.0,0.0001708]
[1734968267365,0.15,93577.0,93576.0,0.0001708]
[1734968267567,0.25398632,93577.0,93576.0,0.0001708]
[1734968268004,0.25398632,93577.0,93576.0,0.0011708]
[1734968268539,0.21373,93576.0,93548.0,0.213793]
[1734968268746,0.25398632,93575.0,93550.0,0.0001604]
[1734968268974,0.15,93566.0,93550.0,0.0001604]
[1734968269133,0.15,93564.0,93550.0,0.0001604]
[1734968269332,0.15,93559.0,93550.0,0.0001604]
[1734968269709,0.15,93557.0,93550.0,0.0001604]
[1734968269916,0.15,93553.0,93550.0,0.0001604]
[1734968270122,0.31777032,93552.0,93550.0,0.0001604]
[1734968270284,0.15,93551.0,93550.0,0.0001604]
[1734968270495,0.25398632,93551.0,93550.0,0.0001604]
[1734968271625,0.27698632,93551.0,93550.0,0.0001604]
[1734968271918,0.27798632,93551.0,93550.0,0.0001604]
[1734968272636,0.27798632,93551.0,93501.0,0.213901]
[1734968272637,0.023,93544.0,93501.0,0.213901]
[1734968272833,0.213835,93530.0,93507.0,0.213886]
[1734968273046,0.15,93542.0,93520.0,0.213857]
[1734968273260,0.15,93540.0,93500.0,4e-05]
[1734968273457,0.10398632,93539.0,93501.0,0.10398632]
[1734968273711,0.15,93538.0,93521.0,0.427709]
[1734968273962,0.10398632,93537.0,93501.0,0.26842581]
[1734968274201,0.10398632,93537.0,93517.0,0.213863]
[1734968274704,0.10398632,93537.0,93523.0,0.21385]
[1734968275197,0.10398632,93537.0,93518.0,0.213862]
[1734968275400,0.10398632,93537.0,93502.0,0.213896]
[1734968275401,0.10398632,93537.0,93523.0,0.21385]
[1734968275623,0.001,93538.0,93502.0,0.213896]
[1734968275624,0.001,93538.0,93533.0,0.213828]
[1734968275830,0.10398632,93536.0,93524.0,0.213847]
[1734968276036,0.10398632,93537.0,93524.0,0.213847]
[1734968276244,0.10398632,93537.0,93529.0,0.213836]
[1734968276652,0.10498632,93537.0,93529.0,0.213836]
[1734968276875,0.10398632,93537.0,93524.0,0.213847]
[1734968277083,0.00016013,93551.0,93525.0,0.00106915]
[1734968277287,0.001,93537.0,93510.0,0.213878]
[1734968277489,0.10398632,93536.0,93511.0,0.00106919]
[1734968277692,0.10398632,93536.0,93506.0,0.0214988]
[1734968277693,0.10398632,93536.0,93525.0,0.213844]
[1734968278438,0.15,93548.0,93530.0,0.139834]
[1734968278659,0.15,93546.0,93508.0,0.213885]
[1734968279006,0.001,93537.0,93530.0,0.213834]
[1734968279211,0.10398632,93537.0,93508.0,0.10398632]
[1734968279478,0.001,93536.0,93521.0,0.427708]
[1734968279692,0.001,93536.0,93525.0,0.213845]
[1734968279902,0.10398632,93537.0,93521.0,0.213854]
[1734968280418,0.10398632,93537.0,93509.0,0.213883]
[1734968280623,0.213789,93550.0,93510.0,0.35865051]
[1734968280834,0.001,93536.0,93512.0,0.213876]
[1734968281045,0.001,93536.0,93506.0,0.0214988]
[1734968281046,0.363827,93534.0,93504.0,0.23843949]
[1734968281253,0.10398632,93535.0,93495.0,0.0461]
[1734968281254,0.15,93528.0,93495.0,0.0461]
[1734968281464,0.15,93526.0,93511.0,0.213877]
[1734968281664,0.001,93536.0,93512.0,0.00106931]
[1734968281873,0.001,93536.0,93534.0,0.213825]
[1734968282084,0.15,93557.0,93535.0,0.00106904]
[1734968282301,0.15,93549.0,93526.0,0.0477]
[1734968282515,0.001,93537.0,93519.0,0.21386]
[1734968282727,0.10398632,93536.0,93519.0,0.21386]
[1734968283133,0.10398632,93536.0,93534.0,0.002]
[1734968283342,0.10398632,93536.0,93514.0,0.213871]
[1734968283343,0.10398632,93536.0,93523.0,0.21385]
[1734968283553,0.12708318,93536.0,93515.0,0.213869]
[1734968283853,0.10398632,93536.0,93517.0,0.213864]
[1734968284052,0.003,93549.0,93533.0,0.213827]
[1734968284360,0.00016013,93551.0,93509.0,0.0466]
[1734968284361,0.00016013,93551.0,93544.0,0.2138]
[1734968284572,0.00016013,93551.0,93549.0,0.213789]
[1734968285389,0.00016013,93551.0,93545.0,0.2138]
[1734968285594,0.00016013,93551.0,93549.0,0.21379]
[1734968286176,0.00016013,93551.0,93547.0,0.213794]
[1734968286376,0.00016013,93551.0,93549.0,0.003]
[1734968286830,0.00116013,93551.0,93549.0,0.003]
[1734968287038,0.25398632,93550.0,93549.0,0.003]
[1734968287206,0.25398632,93550.0,93512.0,0.09381263]
[1734968287207,0.363791,93549.0,93512.0,0.09381263]
[1734968287409,0.213808,93542.0,93513.0,0.21494317]
[1734968287615,0.25398632,93541.0,93512.0,0.09381263]
[1734968287972,0.25398632,93541.0,93520.0,0.213857]
[1734968288259,0.213812,93540.0,93520.0,0.213857]
[1734968288447,0.11658455,93539.0,93520.0,0.213857]
[1734968288651,0.11658455,93539.0,93530.0,0.000171]
[1734968288784,0.001,93550.0,93530.0,0.000171]
[1734968288966,0.15,93548.0,93530.0,0.000171]
[1734968289176,0.001,93550.0,93548.0,0.213792]
[1734968289376,0.001,93550.0,93549.0,0.00106882]
[1734968289674,0.00016013,93551.0,93550.0,0.213789]
[1734968291313,0.00016013,93551.0,93550.0,0.214789]
[1734968291671,0.00016013,93551.0,93550.0,0.213789]
[1734968292898,0.00116013,93551.0,93550.0,0.220789]
[1734968293110,0.00216013,93551.0,93550.0,0.220789]
[1734968293536,0.00116013,93551.0,93550.0,0.007]
[1734968293742,0.00116013,93551.0,93550.0,0.0080687]
[1734968293955,0.00116013,93551.0,93550.0,0.2218577]
[1734968294159,0.00116013,93551.0,93550.0,0.220789]
[1734968294624,0.00216013,93551.0,93550.0,0.220789]
[1734968294829,0.00116013,93551.0,93550.0,0.213789]
[1734968295783,0.00116013,93551.0,93548.0,0.213792]
[1734968295983,0.00016013,93551.0,93548.0,0.213792]
[1734968296160,0.00116013,93551.0,93548.0,0.213792]
[1734968296562,0.00116013,93551.0,93550.0,0.213789]
[1734968296785,0.00016013,93551.0,93550.0,0.213789]
[1734968296949,0.00016013,93551.0,93550.0,0.31777532]
[1734968297361,0.00116013,93551.0,93550.0,0.222789]
[1734968297852,0.00016013,93551.0,93550.0,0.213789]
[1734968297996,0.00116013,93551.0,93550.0,0.222789]
[1734968298604,0.00116013,93551.0,93550.0,0.009]
[1734968299216,0.14616013,93580.0,93550.0,0.0100689]
[1734968299416,0.10398632,93579.0,93550.0,0.0100689]
[1734968299622,0.10398632,93576.0,93550.0,0.009]
[1734968299824,0.213772,93558.0,93550.0,0.009]
[1734968299998,0.10398632,93557.0,93550.0,0.009]
[1734968300367,0.10398632,93557.0,93536.0,0.21382]
[1734968301014,0.10398632,93557.0,93540.0,0.21381]
[1734968301129,8.55e-05,93551.0,93540.0,0.21381]
[1734968301335,8.55e-05,93551.0,93540.0,0.00053491]
[1734968301547,8.55e-05,93551.0,93541.0,0.213809]
[1734968301981,8.55e-05,93551.0,93540.0,0.00053491]
[1734968302405,0.10398632,93550.0,93540.0,0.00053491]
[1734968302846,8.55e-05,93551.0,93540.0,0.00053491]
[1734968303041,8.55e-05,93551.0,93549.0,0.213789]
[1734968303447,8.55e-05,93551.0,93548.0,0.213793]
[1734968303670,8.55e-05,93551.0,93549.0,0.15488632]
[1734968303879,8.55e-05,93551.0,93550.0,0.045]
[1734968304083,8.55e-05,93551.0,93550.0,0.14898632]
[1734968304308,0.09393306,93592.0,93563.0,0.23843949]
[1734968304531,0.00106877,93594.0,93578.0,0.213723]
[1734968304727,8.54e-05,93597.0,93564.0,0.10398632]
[1734968304944,8.54e-05,93597.0,93595.0,0.213686]
[1734968305152,8.54e-05,93597.0,93596.0,0.00106832]
[1734968305377,8.54e-05,93597.0,93595.0,0.213686]
[1734968305608,8.54e-05,93597.0,93596.0,0.10505458]
[1734968305823,0.00024568,93597.0,93596.0,0.10505458]
[1734968306890,0.0462,93643.0,93610.0,0.213651]
[1734968307088,0.10398632,93625.0,93610.0,0.213651]
[1734968307298,0.15,93624.0,93610.0,0.213651]
[1734968307729,0.00016022,93632.0,93611.0,0.00106815]
[1734968307947,0.00016022,93632.0,93596.0,0.10398632]
[1734968307948,0.00016022,93632.0,93631.0,0.213604]
[1734968308387,0.00016022,93632.0,93621.0,0.0477]
[1734968308606,0.00016022,93632.0,93622.0,0.0010679]
[1734968308836,0.00016022,93632.0,93631.0,0.296304]
[1734968309057,0.00016022,93632.0,93631.0,0.40429032]
[1734968309739,9.107e-05,93655.0,93631.0,0.19068632]
[1734968309956,6e-07,93645.0,93644.0,0.77241349]
[1734968310168,0.048,93715.0,93644.0,0.77241349]
[1734968310169,0.03260623,93716.0,93665.0,0.213526]
[1734968310378,0.01465938,93672.0,93671.0,0.236513]
[1734968310582,0.01465938,93672.0,93671.0,0.38589932]
[1734968310797,0.01465938,93672.0,93671.0,0.36289932]
[1734968311234,0.01465938,93672.0,93671.0,0.258913]
[1734968311639,0.01465938,93672.0,93671.0,0.36289932]
[1734968312051,0.01461938,93672.0,93671.0,0.36289932]
[1734968312265,0.01461938,93672.0,93671.0,0.37189932]
[1734968312266,0.01561938,93672.0,93671.0,0.37189932]
[1734968312875,0.01561938,93672.0,93671.0,0.39789932]
[1734968313084,0.01561938,93672.0,93671.0,0.50188564]
[1734968313294,0.01561938,93672.0,93671.0,0.39789932]
[1734968313659,0.00961938,93672.0,93671.0,0.0454]
[1734968313880,0.00961938,93672.0,93671.0,0.213513]
[1734968314092,0.00961938,93672.0,93660.0,0.213538]
[1734968314314,0.00961938,93672.0,93665.0,0.213525]
[1734968314521,0.01061938,93672.0,93671.0,0.009]
[1734968314721,0.01061938,93672.0,93671.0,0.11405366]
[1734968314929,0.00961938,93672.0,93671.0,0.10805359]
[1734968315128,0.00961938,93672.0,93671.0,0.11005359]
[1734968315337,0.00961938,93672.0,93671.0,0.10898632]
[1734968315542,0.00961938,93672.0,93671.0,0.10698632]
[1734968315989,0.00961938,93672.0,93671.0,0.003]
[1734968316192,0.00961938,93672.0,93670.0,0.213513]
[1734968316372,0.00961938,93672.0,93671.0,0.00106746]
[1734968316571,0.00961938,93672.0,93670.0,0.213513]
[1734968316811,0.00961938,93672.0,93671.0,0.00106737]
[1734968316947,0.01061938,93672.0,93671.0,0.01106737]
[1734968317391,0.00961938,93672.0,93671.0,0.00106737]
[1734968317613,0.01061938,93672.0,93671.0,0.11105369]
[1734968317889,0.15,93701.0,93688.0,0.213473]
[1734968318088,0.00034804,93691.0,93690.0,0.213469]
[1734968318637,0.00034804,93691.0,93688.0,0.213473]